Cogmind - Beta 15 @@@ ROGUE MODE // 2025.08.04 @ 18:15:26 Player: OoferDoofums Result: Destroyed by G-47 Trooper with Particle Gun Performance ------------- Evolutions (2) 1000 Regions Visited (3) 600 Robots Destroyed (6) 30 Value Destroyed (167) 167 Prototype IDs (0) 0 Alien Tech Used (0) 0 Bonus (200) 200 TOTAL SCORE: 1997 Bonus ------- Pacifist 200 Cogmind --------- Core Integrity 0/550 Matter 220/300 Energy 100/100 System Corruption 0% Temperature Cool (9) Movement Core (50) Location -8/Materials Parts ------- > --- POWER (1) -------- (None) > --- PROPULSION (3) --- (None) > --- UTILITY (4) ------ Core Shielding > --- WEAPON (3) ------- Flail > --- INVENTORY (5) ---- (None) Peak State ------------ > --- POWER ------------ Ion Engine > --- PROPULSION ------- Aluminum Leg Aluminum Leg Aluminum Leg > --- UTILITY ---------- Small Storage Unit Large Battery Structural Scanner Core Shielding > --- WEAPON ----------- Medium Laser Small Laser > --- INVENTORY -------- Improved Ion Engine Aluminum Leg Core Shielding Core Shielding Beam Cannon Heavy Assault Rifle Flail [Rating: 11] Favorites ----------- Power Ion Engine Engine Ion Engine Propulsion Aluminum Leg Leg Aluminum Leg Utility Core Shielding Device Structural Scanner Storage Small Storage Unit Protection Core Shielding Weapon Medium Laser Energy Gun Medium Laser Energy Cannon Beam Cannon Ballistic Gun Heavy Assault Rifle Impact Weapon Flail Build | -11 -10 -9 -8 ------- Run | Yrd Mat Mat Mat Slots Evolved 4 | . . 2 2 Power . | . . . . Propulsion 1 | . . . 1 Utility 2 | . . 2 . Weapon 1 | . . . 1 Parts Attached 17 | 6 1 6 4 Power 2 | 1 . . 1 Engine 2 | 1 . . 1 Core . | . . . . Reactor . | . . . . Propulsion 4 | 2 . 2 . Treads . | . . . . Leg 4 | 2 . 2 . Wheel . | . . . . Hover . | . . . . Flight . | . . . . Utility 6 | 1 1 4 . Device 1 | . . 1 . Storage 2 | 1 . 1 . Processor . | . . . . Hackware . | . . . . Protection 3 | . 1 2 . Artifact . | . . . . Weapon 5 | 2 . . 3 Energy Gun 2 | 2 . . . Energy Cannon 1 | . . . 1 Ballistic Gun 1 | . . . 1 Ballistic Cannon . | . . . . Launcher . | . . . . Special Weapon . | . . . . Impact Weapon 1 | . . . 1 Slashing Weapon . | . . . . Piercing Weapon . | . . . . Special Melee Weapon . | . . . . Unidentified Prototypes . | . . . . Parts Lost 15 | . . . 15 Power 2 | . . . 2 Propulsion 4 | . . . 4 Utility 5 | . . . 5 Weapon 4 | . . . 4 Highest Loss Streak 15 | . . . 15 To Critical Strikes . | . . . . Average Backups 3 | . 3 5 3 Power . | . . . . Propulsion . | . . . . Utility 2 | . 2 2 1 Weapon 1 | . . 2 1 Tool/Special . | . . . . Unused Backups . | . . . . Power . | . . . . Propulsion . | . . . . Utility . | . . . . Weapon . | . . . . Tool/Special . | . . . . Average Slot Usage (%) 93 | . 98 99 70 Engine 11 | . 14 11 6 Leg 22 | . 28 22 12 Device 4 | . . 9 3 Storage 17 | . 14 21 17 Protection 12 | . 12 12 11 Energy Gun 22 | . 28 22 10 Peak Build Rating 11 | 6 7 10 11 Average Rating 7 | 4 6 9 8 On Entrance 5 | . 6 7 10 Naked Turns . | . . . . Heaviest Build 22 | 13 14 18 22 Greatest Support 30 | 20 20 20 30 Greatest Overweight (x) 7 | 4 . . 7 Average Overweight (x) . | 1 . . 1 Largest Inventory Capacity 8 | 8 8 8 8 Average Capacity 7 | 7 8 8 7 Most Carried 8 | . 5 8 7 Average Carried 3 | . 3 5 3 Final Capacity 8 | 8 8 8 5 Final Carried 8 | . 5 8 . Class Distribution -------------------- 91% | Mutant 8% | Tank Dominant Class ---------------- Mutant | -10/Materials Mutant | -9/Materials Mutant | -8/Materials Resources | -11 -10 -9 -8 ----------- Run | Yrd Mat Mat Mat Matter Collected 238 | 91 . 147 . Remotely . | . . . . Salvage Created 200 | . . 179 21 Parts 9 | . . 7 2 Haulers Intercepted . | . . . . Recyclers Shooed . | . . . . Parts Field Recycled . | . . . . Retrieved Matter . | . . . . Parts Self-Destructed . | . . . . Prevented . | . . . . Kills | -11 -10 -9 -8 ------- Run | Yrd Mat Mat Mat Combat Hostiles Destroyed 6 | . . 4 2 Guns 6 | . . 4 2 Classes Destroyed 3 | . . 2 1 Swarmer 2 | . . . 2 Grunt 3 | . . 3 . Sentry 1 | . . 1 . Best Kill Streak 2 | . . 2 2 Combat Bots Only 2 | . . 2 2 Max Kills in Single Turn 1 | . . 1 1 Gunslinging . | . . . . Exploded . | . . . . Melee . | . . . . Uniques/NPCs Destroyed . | . . . . Combat | -11 -10 -9 -8 -------- Run | Yrd Mat Mat Mat Hostile Shots Fired 183 | . . 16 167 Missed 53 | . . 3 50 Hits 130 | . . 13 117 Projectile 130 | . . 13 117 AOE 2 | . . . 2 Critical Strikes 4 | . . . 4 Actively Blocked 1 | . . . 1 Damage Taken 1908 | . . 163 1745 Core 611 | . . 53 558 Absorbed by Shields . | . . . . Redirected to Shielding 124 | . . 11 113 Core Remaining (%) 95 | 100 100 86 . Volleys Fired 19 | . . 13 6 Largest 3 | . . 2 3 Hottest 150 | . . 90 150 Shots Fired 44 | . . 26 18 Gun 38 | . . 26 12 Cannon 6 | . . . 6 Launcher . | . . . . Special . | . . . . Kinetic 1 | . . . 1 Thermal 43 | . . 26 17 Explosive . | . . . . Electromagnetic . | . . . . Robot Hit Streak 6 | . . 6 5 Robot Miss Streak 4 | . . 2 4 Penetration Max . | . . . . Secondary Targets . | . . . . Shots Hit Robots 33 | . . 19 14 Core Hits 12 | . . 9 3 Critical Kills . | . . . . Critical Parts Destroyed . | . . . . Critical Strikes 1 | . . 1 . Burn 1 | . . 1 . Melee Attacks 13 | . . . 13 Impact 13 | . . . 13 Slashing . | . . . . Piercing . | . . . . Sneak Attacks . | . . . . Combat Hostiles . | . . . . Follow-up Attacks . | . . . . Damage Inflicted 562 | . . 243 319 Guns 320 | . . 225 95 Cannons 53 | . . . 53 Explosions . | . . . . Melee 171 | . . . 171 Ramming 18 | . . 18 . Kinetic . | . . . . Thermal 373 | . . 225 148 Explosive . | . . . . Electromagnetic . | . . . . Impact 171 | . . . 171 Slashing . | . . . . Piercing . | . . . . Highest Corruption . | . . . . Average Corruption . | . . . . Corruption Purged . | . . . . Corruption Blocked . | . . . . Overload Shots . | . . . . Overflow Damage . | . . . . Projectiles . | . . . . Explosions . | . . . . Melee . | . . . . Knockbacks 5 | . . . 5 Impact 3 | . . . 3 Kinetic . | . . . . Secondary 2 | . . . 2 Self-Inflicted Damage . | . . . . Shots . | . . . . Rammed . | . . . . Targets Rammed 6 | . . 6 . Kicked 6 | . . 6 . Crushed . | . . . . Highest Temperature 337 | . . 114 337 Average Temperature 122 | . . 53 194 Received Heat Transfer 819 | . . 72 747 Siege Activations . | . . . . Martial Activations . | . . . . Shielding Activations . | . . . . Robots Disrupted . | . . . . Combat Hostiles . | . . . . Robots Corrupted . | . . . . Combat Hostiles . | . . . . Parts Fried . | . . . . Impact Corruptions 1 | . . . 1 Robots Melted . | . . . . Combat Hostiles . | . . . . Parts Melted 1 | . . 1 . Heat Transferred 1028 | . . 669 359 Parts Sabotaged . | . . . . Parts Stolen . | . . . . Parts Stripped . | . . . . Power Chain Reactions . | . . . . Alert | -11 -10 -9 -8 ------- Run | Yrd Mat Mat Mat Maximum Alert Level . | . . . . Low Security (%) 100 | 100 100 100 100 Level 1 . | . . . . Level 2 . | . . . . Level 3 . | . . . . Level 4 . | . . . . Level 5 . | . . . . High Security . | . . . . Max Security . | . . . . Peak Influence 75 | . . 75 30 Initial 18 | . . . 18 Average 13 | . . 35 7 Influence Increases 250 | . . 165 85 Destroy 0b10 Robot/C 120 | . . 80 40 Destroy Leader 10 | . . 10 . Lose Combat Pursuer 120 | . . 75 45 Influence Decreases 250 | . . 120 130 Entered New Map 27 | . . . 27 Time Decay 168 | . . 120 48 Lost Part 55 | . . . 55 Squads Dispatched 3 | . 1 . 2 Investigation 1 | . . . 1 Extermination . | . . . . Reinforcement 2 | . 1 . 1 Assault . | . . . . Garrison . | . . . . Intercept . | . . . . Searches Triggered . | . . . . Construction Impeded . | . . . . Haulers Reinforced . | . . . . Active Scanning Responses . | . . . . Cargo Convoy Interrupts . | . . . . Stealth | -11 -10 -9 -8 --------- Run | Yrd Mat Mat Mat Distress Signals 2 | . . . 2 Communications Jammed . | . . . . Distress Signals . | . . . . Times Spotted 31 | . 1 11 19 Peak Tracking Total 11 | . 1 4 11 Tactical Retreats 7 | . . 4 3 Traps | -11 -10 -9 -8 ------- Run | Yrd Mat Mat Mat Traps Triggered 1 | . . . 1 Indirectly . | . . . . Trap Hack Attempts . | . . . . Triggered . | . . . . Disarmed . | . . . . Reprogrammed . | . . . . Reused . | . . . . Traps Extracted . | . . . . Installed . | . . . . Triggered . | . . . . Machines | -11 -10 -9 -8 ---------- Run | Yrd Mat Mat Mat Machines Disabled . | . . . . Max in Single Turn . | . . . . Machines Repaired . | . . . . Machines Dismantled . | . . . . Machines Sabotaged . | . . . . Overloaded Fab Kills . | . . . . Hacking | -11 -10 -9 -8 --------- Run | Yrd Mat Mat Mat Machines Accessed 4 | . 1 2 1 Terminals 3 | . 1 1 1 Fabricators . | . . . . Repair Stations 1 | . . 1 . Recycling Units . | . . . . Scanalyzers . | . . . . Garrison Access . | . . . . Total Hacks 9 | . 1 6 2 Successful 2 | . 1 . 1 Failed 7 | . . 6 1 Catastrophic 1 | . . 1 . Database Lockouts . | . . . . Manual . | . . . . Terminals 7 | . 1 4 2 Fabricators . | . . . . Repair Stations 2 | . . 2 . Recycling Units . | . . . . Scanalyzers . | . . . . Garrison Access . | . . . . Terminal Hacks 2 | . 1 . 1 Emergency Access Points 1 | . 1 . . Dispatch Records 1 | . . . 1 Fabricator Hacks . | . . . . Repair Station Hacks . | . . . . Recycling Unit Hacks . | . . . . Scanalyzer . | . . . . Garrison Access Hacks . | . . . . Unauthorized Hacks . | . . . . Terminals . | . . . . Fabricators . | . . . . Repair Stations . | . . . . Recycling Units . | . . . . Scanalyzers . | . . . . Garrison Access . | . . . . Data Cores Recovered . | . . . . Used . | . . . . Hacking Detections 3 | . 1 1 1 Full Trace Events . | . . . . Feedback Events . | . . . . Feedback Blocked . | . . . . Robot Schematics Acquired . | . . . . Robots Built . | . . . . Authchips . | . . . . Time . | . . . . Total Robot Build Rating . | . . . . Part Schematics Acquired . | . . . . Parts Built . | . . . . Authchips . | . . . . Time . | . . . . Total Part Build Rating . | . . . . Parts Repaired . | . . . . Time . | . . . . Parts Recycled . | . . . . Recycled Matter . | . . . . Retrieved Matter . | . . . . Retrieved Components . | . . . . Parts Scanalyzed . | . . . . Part Schematics Acquired . | . . . . Parts Damaged . | . . . . Bothacking | -11 -10 -9 -8 ------------ Run | Yrd Mat Mat Mat Used RIF Installer . | . . . . Robots Hacked . | . . . . Non-combat . | . . . . Combat . | . . . . Robot Hacks Applied . | . . . . Relay Couplers Released . | . . . . Fabnet Peak Effective % . | . . . . Robots Rewired . | . . . . Allies Hacked . | . . . . Hacks Repelled . | . . . . Allies | -11 -10 -9 -8 -------- Run | Yrd Mat Mat Mat Total Allies . | . . . . Largest Group . | . . . . Highest-Rated Group . | . . . . Highest-Rated Ally . | . . . . Total Orders . | . . . . Ally Attacks . | . . . . Total Damage . | . . . . Kills . | . . . . Allies Corrupted . | . . . . Allies Melted . | . . . . Intel | -11 -10 -9 -8 ------- Run | Yrd Mat Mat Mat Active Infowar (turns) 352 | . . 304 48 Structural 352 | . . 304 48 Robot Analysis Total . | . . . . Derelict Logs Recovered . | . . . . Drone Launches . | . . . . Drone Recoveries . | . . . . Exploration | -11 -10 -9 -8 ------------- Run | Yrd Mat Mat Mat Turns Passed 948 | 57 398 328 165 Spaces Moved 496 | 32 198 199 67 Core 31 | 13 . . 18 Treads . | . . . . Legs 465 | 19 198 199 49 Wheels . | . . . . Hover . | . . . . Flight . | . . . . Fastest Speed 50 | 50 120 120 50 Average Speed 126 | 151 120 120 155 Slowest Speed 400 | 250 120 120 400 Overloaded Moves . | . . . . Propulsion Burnouts . | . . . . Robots Hopped . | . . . . Potential Cave-ins . | . . . . Cave-ins Triggered . | . . . . Exploration Rate (%) 18 | 4 37 22 12 Regions Visited 3 Branch Regions . Pre-discovered Areas . | . . . . Known Exits Taken . | . . . . Unknown Exits Taken 3 | 1 1 1 . Scrap Searched . | . . . . Spaces Dug . | . . . . Terrain Destroyed . | . . . . Melee . | . . . . Projectile . | . . . . AOE . | . . . . Terrain Rammed . | . . . . Walls Destroyed . | . . . . Machines Disabled . | . . . . Actions | -11 -10 -9 -8 --------- Run | Yrd Mat Mat Mat Total 750 | 37 358 261 94 Wait 187 | . 155 32 . Move 493 | 31 197 198 67 Hop . | . . . . Pick Up 8 | . 5 3 . Fast Attach 7 | 6 1 . . Attach 12 | . . 4 8 Detach 2 | . . 2 . Swap 2 | . . 2 . Drop . | . . . . Fire 19 | . . 13 6 Melee 13 | . . . 13 Ram . | . . . . Kick 6 | . . 6 . Crush . | . . . . Escape Stasis . | . . . . Rewire 1 | . . 1 . Trap . | . . . . Miscellaneous . | . . . . Route ------- -11/Scrapyard -10/Materials -9/Materials -8/Materials History --------- Turn | Location | Event 34 | -11/Scrapyard | Discovered new exit (range 15) 58 | -11/Scrapyard | Entered Materials 310 | -10/Materials | Build established: Mutant 364 | -10/Materials | Discovered new exit (range 7) 456 | -10/Materials | Entered another Materials area 456 | -9/Materials | Evolved 2 slots: Utility x2 752 | -9/Materials | Discovered new exit (range 10) 784 | -9/Materials | Entered another Materials area 784 | -8/Materials | Evolved 2 slots: Propulsion x1, Weapon x1 901 | -8/Materials | Core integrity fell below 50% 934 | -8/Materials | Core integrity fell below 20% 949 | -8/Materials | Destroyed by G-47 Trooper with Particle Gun Last Messages --------------- Core Shielding destroyed. K-01 Serf collects debris. U-05 Engineer lays Concrete. U-05 Engineer builds a Wall. R-06 Scavenger collects Transport Network Coupler. Hvy. Assault Rifle destroyed. Destroyed Aluminum Leg. G-47 Trooper system corrupted by crushing effect. G-47 Trooper knocked back. K-01 Serf collects debris. Imp. Ion Engine destroyed. Hadron Collector disabled. U-05 Engineer lays Concrete. S-10 Pest knocked back. Core Shielding destroyed. Lrg. Battery destroyed. G-47 Trooper knocked back. Sml. Storage Unit destroyed. Map ----- +----------------------------------------------------+ | ??????????????????????????????? [### ##??? | | ??????????????????????????????? ] ### ##??? | | ???????????????????????????????? ### ##### | | ???????????????????????????????? ### ##### | | ????????????????????????????????? ### # | | ?????????????????????????????? ] ### #[ | | ??????????????????????????????###+ #" | | ????????????????????????????#### +%""? | | ??????????????????????????? #"??? | | ????????????????????#????????## "# ??? | | ??????????????#?????# ???????## % ##??? | | ?????????????? ###/######## "##??? | | ????????????? = %] % ##??? | | ????????????? ]]] ] % % ##??? | | ????????????? ] ## # ##??? | | ????????????? #####/#### ## | | ??????????????? ??????# ###### # # | | ???????????????????????# "" #????####### | | ???????????????????????#Y""" #?????????########## | | ???????????????????????#g "" #?????????########## | | ???????????# ## "" #??????????????????? | | ???????????# / #??????????????????? | | ???????????# ###g#####??????????????????? | | ????????????????????????# #??????????????????????? | | ????????????????????????# #??????????????????????? | | ????????????????????????#@#??????????????????????? | | ????????????????????????# #??????????????????????? | | ????????????????????????#/#??????????????????????? | | ???????????????????????? s"??????????????????????? | | ???????????????????????? "??????????????????????? | | ???????????????????????? "??????????????????????? | | ???????????????????????? ??????????????????????? | | ???????????????????????# ?????????????????????? | | ???????????????????????# ?????????????????????? | | ???????????????????????####??????????????????????? | | ?????????????????????????????????????????????????? | | ?????????????????????????????????????????????????? | | ?????????????????????????????????????????????????? | | ?????????????????????????????????????????????????? | | ?????????????????????????????????????????????????? | | ?????????????????????????????????????????????????? | | ?????????????????????????????????????????????????? | | ?????????????????????????????????????????????????? | | ?????????????????????????????????????????????????? | | ?????????????????????????????????????????????????? | | ?????????????????????????????????????????????????? | | ?????????????????????????????????????????????????? | | ?????????????????????????????????????????????????? | | ?????????????????????????????????????????????????? | | ?????????????????????????????????????????????????? | +----------------------------------------------------+ Best States ------------- Heat Dissipation 31 Energy Generation 12 Energy Capacity 465 Matter Stores 248 Matter Capacity 300 Sight Range 16 Terrain Scan Density 10 Core Shielding 20 Evasion (%) 55 Item Schematics ----------------- None Robot Schematics ------------------ None Fabricated ------------ Nothing Repaired ---------- Nothing Alien Tech Used ----------------- None Achievements -------------- None Challenges ------------ None Game ------ Seed DispersalComponentKatana Manual? 0 Play Time 00:16:49 Cumulative 29.4 hours Start 2025.08.04 @ 17:55:58 End 2025.08.04 @ 18:15:26 Sessions 1 Manual Loads 0 Difficulty Rogue Special Mode None Game No. 56 Rogue 56 Adventurer 0 Explorer 0 Win Type - Total 0 Types 0/0/0/0/0/0/0/0/0/0 Lore% 24 Gallery% 23 Achievement% 21 Wizard Run 0 Options --------- Layout 1 ASCII 0 Keyboard 0 Movement Mouse Keybinds 0 Fullscreen 1 Font 24/Smallcaps Map View 50x35 Zoom Use 0% Tactical HUD 0 Map Filters NONE Filters NONE Steam 1 RUN: 3a3364a5-31c5-47b2-90e4-5221d3b88245